fUSD/lending_fUSD_20260523
["ID","MTS","AMOUNT","RATE_DAILY","PERIOD"]
[422836217,1779501033000,-6508.7393,0.000103,2]
[422836222,1779501033000,-344.38847477,0.00010362,2]
[422836219,1779501033000,-209.27481089,0.00010362,2]
[422836221,1779501033000,-382.70538527,0.00010362,2]
[422836220,1779501033000,-250.0,0.00010362,2]
[422836227,1779501033000,-3418.76437777,0.00010417,2]
[422836229,1779501033000,-2500.0,0.00010498,2]
[422836218,1779501033000,-250.0,0.00010362,2]
[422836205,1779501033000,-236.22702834,0.00010026,2]
[422836203,1779501033000,-1200.0,0.00010025,2]
[422836206,1779501033000,-300.0,0.00010026,2]
[422836189,1779501033000,-245.32,9.35e-05,2]
[422836194,1779501033000,-445.94047345,9.597e-05,2]
[422836191,1779501033000,-298.64,9.518e-05,2]
[422836190,1779501033000,-165.31,9.42e-05,2]
[422836193,1779501033000,-716.88532856,9.597e-05,2]
[422836192,1779501033000,-516.81351096,9.597e-05,2]
[422836195,1779501033000,-150.0,9.613e-05,2]
[422836228,1779501033000,-2000.0,0.00010498,2]
[422836196,1779501033000,-7.90188252,9.708e-05,2]
[422836198,1779501033000,-164.81,9.76e-05,2]
[422836199,1779501033000,-2000.0,9.833e-05,2]
[422836200,1779501033000,-595.112203,9.871e-05,2]
[422836201,1779501033000,-160.0,9.921e-05,2]
[422836202,1779501033000,-1665.26,0.0001,2]
[422836204,1779501033000,-63.77297166,0.00010026,2]
[422836207,1779501033000,-193.5490024,0.00010027,2]
[422836197,1779501033000,-208.09811748,9.708e-05,2]
[422836223,1779501033000,-1000.0,0.00010399,2]
[422836210,1779501033000,-204.52,0.00010077,2]
[422836224,1779501033000,-1727.138,0.00010417,2]
[422836250,1779501033000,-500.0,0.00010699,2]
[422836247,1779501033000,-500.0,0.00010699,2]
[422836252,1779501033000,-277.78874617,0.00010699,2]
[422836260,1779501033000,-47519.01110088,0.000107,2]
[422836251,1779501033000,-500.0,0.00010699,2]
[422836254,1779501033000,-139009.4255334,0.000107,2]
[422836255,1779501033000,-43896.65116453,0.000107,2]
[422836256,1779501033000,-1711.59719033,0.000107,2]
[422836259,1779501033000,-6226.43661,0.000107,2]
[422836258,1779501033000,-478.50807902,0.000107,2]
[422836253,1779501033000,-7560.3316469,0.000107,2]
[422836257,1779501033000,-17198.57241436,0.000107,2]
[422836261,1779501033000,-9733.18289234,0.000107,2]
[422836225,1779501033000,-170.008,0.00010417,2]
[422836263,1779501033000,-440.0,0.000107,2]
[422836265,1779501033000,-351.5299975,0.000107,2]
[422836264,1779501033000,-12459.82282015,0.000107,2]
[422836246,1779501033000,-302.92932459,0.00010699,2]
[422836249,1779501033000,-283.23645949,0.00010699,2]
[422836262,1779501033000,-457.18949842,0.000107,2]
[422836245,1779501033000,-241.80184706,0.00010699,2]
[422836248,1779501033000,-337.48162437,0.00010699,2]
[422836226,1779501033000,-150.0,0.00010417,2]
[422836231,1779501033000,-208.7374384,0.00010533,2]
[422836239,1779501033000,-2256.7702533,0.00010699,2]
[422836233,1779501033000,-504.13866721,0.00010597,2]
[422836234,1779501033000,-444.9599,0.00010598,2]
[422836232,1779501033000,-1456.78172033,0.00010596,2]
[422836236,1779501033000,-217.94478491,0.0001069,2]
[422836230,1779501033000,-1867.64,0.00010529,2]
[422836238,1779501033000,-67312.1359928,0.00010698,2]
[422836235,1779501033000,-179.80290054,0.00010647,2]
[422836242,1779501033000,-2451.9104395,0.00010699,2]
[422836240,1779501033000,-152992.2218222,0.00010699,2]
[422836244,1779501033000,-500.0,0.00010699,2]
[422836241,1779501033000,-63922.2316072,0.00010699,2]
[422836237,1779501033000,-371.80999094,0.00010697,2]
[422836243,1779501033000,-24152.1901438,0.00010699,2]
[422836291,1779501038000,-219.46140701,0.00010646,2]
[422836292,1779501038000,-280.53859299,0.00010646,2]
[422836303,1779501038000,-2.44729414,0.00010646,2]
[422836294,1779501038000,-500.0,0.00010646,2]
[422836295,1779501038000,-500.0,0.00010646,2]
[422836296,1779501038000,-500.0,0.00010646,2]
[422836305,1779501038000,-162.5646344,0.00010646,2]
[422836298,1779501038000,-500.0,0.00010646,2]
[422836297,1779501038000,-500.0,0.00010646,2]
[422836302,1779501038000,-497.55270586,0.00010646,2]
[422836299,1779501038000,-500.0,0.00010646,2]
[422836287,1779501038000,-500.0,0.00010646,2]
[422836301,1779501038000,-500.0,0.00010646,2]
[422836304,1779501038000,-337.4353656,0.00010646,2]
[422836289,1779501038000,-500.0,0.00010646,2]
[422836280,1779501038000,-180.53859299,0.00010646,2]
[422836285,1779501038000,-500.0,0.00010646,2]
[422836300,1779501038000,-500.0,0.00010646,2]
[422836274,1779501038000,-176.41632693,0.000106,2]
[422836276,1779501038000,-500.0,0.00010646,2]
[422836275,1779501038000,-500.0,0.00010646,2]
[422836277,1779501038000,-500.0,0.00010646,2]
[422836279,1779501038000,-319.46140701,0.00010646,2]
[422836290,1779501038000,-500.0,0.00010646,2]
[422836281,1779501038000,-500.0,0.00010646,2]
[422836293,1779501038000,-500.0,0.00010646,2]
[422836283,1779501038000,-500.0,0.00010646,2]
[422836282,1779501038000,-500.0,0.00010646,2]
[422836284,1779501038000,-500.0,0.00010646,2]
[422836288,1779501038000,-500.0,0.00010646,2]
[422836286,1779501038000,-500.0,0.00010646,2]
[422836278,1779501038000,-500.0,0.00010646,2]
[422836307,1779501038000,-500.0,0.00010646,2]
[422836334,1779501038000,-500.0,0.00010646,2]
[422836306,1779501038000,-500.0,0.00010646,2]
[422836331,1779501038000,-440.98379176,0.00010646,2]
[422836333,1779501038000,-500.0,0.00010646,2]
[422836332,1779501038000,-59.01620824,0.00010646,2]
[422836329,1779501038000,-500.0,0.00010646,2]
[422836326,1779501038000,-500.0,0.00010646,2]
[422836330,1779501038000,-500.0,0.00010646,2]
[422836328,1779501038000,-72.176704,0.00010646,2]
[422836327,1779501038000,-427.823296,0.00010646,2]
[422836336,1779501038000,-304.11943339,0.000107,2]
[422836308,1779501038000,-463.48867391,0.00010646,2]
[422836341,1779501038000,-807.91327417,0.000107,2]
[422836337,1779501038000,-78000.0,0.000107,2]
[422836338,1779501038000,-747.90915539,0.000107,2]
[422836340,1779501038000,-3596.22805072,0.000107,2]
[422836335,1779501038000,-213.81180837,0.00010646,2]
[422836325,1779501038000,-500.0,0.00010646,2]
[422836339,1779501038000,-796.55986639,0.000107,2]
[422836323,1779501038000,-500.0,0.00010646,2]
[422836310,1779501038000,-500.0,0.00010646,2]
[422836309,1779501038000,-36.51132609,0.00010646,2]
[422836312,1779501038000,-500.0,0.00010646,2]
[422836322,1779501038000,-500.0,0.00010646,2]
[422836324,1779501038000,-500.0,0.00010646,2]
[422836311,1779501038000,-500.0,0.00010646,2]
[422836314,1779501038000,-167.44417744,0.00010646,2]
[422836313,1779501038000,-332.55582256,0.00010646,2]
[422836315,1779501038000,-500.0,0.00010646,2]
[422836320,1779501038000,-500.0,0.00010646,2]
[422836319,1779501038000,-500.0,0.00010646,2]
[422836321,1779501038000,-500.0,0.00010646,2]
[422836318,1779501038000,-500.0,0.00010646,2]
[422836317,1779501038000,-392.123252,0.00010646,2]
[422836316,1779501038000,-107.876748,0.00010646,2]
[422836342,1779501039000,-20955.83799274,0.000107,2]
[422836351,1779501040000,-19396.87863863,0.000107,2]
[422836352,1779501040000,-475.80353924,0.000107,2]
[422836354,1779501040000,-37780.53205576,0.000107,2]
[422836355,1779501040000,-504.28224,0.000107,2]
[422836353,1779501040000,-55378.48382297,0.000107,2]
[422836357,1779501040000,-1135.96567531,0.000107,2]
[422836359,1779501040000,-18850.04164589,0.000107,2]
[422836360,1779501040000,-390.204,0.000107,2]
[422836358,1779501040000,-171365.65747783,0.000107,2]
[422836356,1779501040000,-1014.40720992,0.000107,2]
[422836362,1779501041000,-2316.90688967,0.000107,2]
[422836363,1779501041000,-1819.1209591,0.000107,2]
[422836361,1779501041000,-128153.09642434,0.000107,2]
[422836432,1779501043000,-8626.61015021,0.000107,2]
[422836433,1779501043000,-377.07,0.000107,2]
[422836435,1779501043000,-7029.85982336,0.000107,2]
[422836437,1779501043000,-1410.78044196,0.000107,2]
[422836436,1779501043000,-500.0,0.000107,2]
[422836438,1779501043000,-341.04,0.000107,2]
[422836434,1779501043000,-1069.58411051,0.000107,2]
[422836439,1779501044000,-4067.36611766,0.000107,2]
[422836559,1779501046000,-2500.0,0.00010498,2]
[422836562,1779501046000,-65166.45,0.000107,2]
[422836560,1779501046000,-77230.5522407,0.000107,2]
[422836563,1779501046000,-24738.08695369,0.000107,2]
[422836564,1779501046000,-1110.9295,0.000107,2]
[422836565,1779501046000,-1151.30067516,0.000107,2]
[422836561,1779501046000,-494.61771879,0.000107,2]
[422836568,1779501049000,-44900.95365898,0.000107,2]
[422836567,1779501049000,-5199.05551289,0.000107,2]
[422836566,1779501049000,-787.3918556,9.42e-05,2]
[422836629,1779501303000,196.68,5.226e-05,2]
[422836628,1779501303000,196.68,4.965e-05,2]
[422836630,1779501304000,196.68,5.487e-05,2]
[422836631,1779501304000,196.68,5.749e-05,2]
[422836633,1779501304000,196.68,6.271e-05,2]
[422836634,1779501304000,196.68,6.532e-05,2]
[422836632,1779501304000,196.68,6.01e-05,2]
[422836637,1779501305000,196.68,7.316e-05,2]
[422836636,1779501305000,196.68,7.055e-05,2]
[422836635,1779501305000,196.68,6.794e-05,2]
[422836638,1779501306000,196.68,7.578e-05,2]
[422836639,1779501306000,196.68,7.839e-05,2]
[422836642,1779501306000,196.68,8.623e-05,2]
[422836641,1779501306000,196.68,8.361e-05,2]
[422836640,1779501306000,196.68,8.1e-05,2]
[422836643,1779501513000,150.0,8.618e-05,2]
[422836644,1779501634000,1095.94713456,0.00028082,120]
[422836645,1779501665000,-196.68,8.884e-05,2]
[422836646,1779501665000,-250.0,9.015e-05,2]
[422836647,1779501665000,-167.15,9.037e-05,2]
[422836648,1779501666000,57.17,8.949e-05,2]
[422836649,1779501679000,164.6,7.105e-05,2]
[422836650,1779501795000,831.6,0.00028082,120]
[422836652,1779502030000,2000.0,8.537e-05,2]
[422836656,1779502043000,400.0,9.8e-05,3]
[422836657,1779502045000,800.0,9.9e-05,3]
[422836658,1779502047000,1300.0,0.0001,3]
[422836659,1779502080000,183.14,8.523e-05,2]
[422836660,1779502088000,2839.69,8.513e-05,2]
[422836661,1779502106000,1248.16,8.513e-05,2]
[422836662,1779502140000,1000.0,0.00028081,120]
[422836664,1779502153000,277.27027322,9.8e-05,3]
[422836663,1779502153000,122.72972678,9.8e-05,3]
[422836665,1779502155000,900.0,9.9e-05,3]
[422836666,1779502157000,1400.0,0.0001,3]
[422836668,1779502158000,212.87,0.00028082,120]
[422836667,1779502158000,2614.92,8.524e-05,2]
[422836669,1779502174000,809.86,8.515e-05,2]
[422836682,1779502232000,-4149.76,8.789e-05,2]
[422836681,1779502232000,-500.0,8.784e-05,2]
[422836683,1779502232000,-169.1,8.807e-05,2]
[422836684,1779502232000,-776.23,8.864e-05,2]
[422836688,1779502232000,-196.68,9.145e-05,2]
[422836680,1779502232000,-150.0,8.774e-05,2]
[422836679,1779502232000,-367.99,8.718e-05,2]
[422836678,1779502232000,-500.0,8.688e-05,2]
[422836677,1779502232000,-20524.9,8.688e-05,2]
[422836676,1779502232000,-314.06652556,8.687e-05,2]
[422836674,1779502232000,-300.0,8.687e-05,2]
[422836673,1779502232000,-1200.0,8.687e-05,2]
[422836672,1779502232000,-300.0,8.687e-05,2]
[422836686,1779502232000,-3099.0,9.138e-05,2]
[422836675,1779502232000,-162.09789446,8.687e-05,2]
[422836685,1779502232000,-281.48162064,9.138e-05,2]
[422836689,1779502232000,-150.0,9.148e-05,2]
[422836703,1779502232000,-501.22820635,9.311e-05,2]
[422836702,1779502232000,-398.26552164,9.311e-05,2]
[422836705,1779502232000,-343.32323318,9.312e-05,2]
[422836704,1779502232000,-66333.98364273,9.312e-05,2]
[422836701,1779502232000,-212.05052721,9.311e-05,2]
[422836699,1779502232000,-500.0,9.311e-05,2]
[422836698,1779502232000,-236.23713706,9.311e-05,2]
[422836700,1779502232000,-169.26129294,9.311e-05,2]
[422836696,1779502232000,-162.09789446,9.292e-05,2]
[422836697,1779502232000,-500.0,9.311e-05,2]
[422836695,1779502232000,-665.00385028,9.272e-05,2]
[422836694,1779502232000,-200.0,9.234e-05,2]
[422836692,1779502232000,-4754.0,9.167e-05,2]
[422836693,1779502232000,-4828.88505097,9.211e-05,2]
[422836690,1779502232000,-9443.0,9.149e-05,2]
[422836691,1779502232000,-414.28454168,9.165e-05,2]
[422836687,1779502232000,-3120.0,9.142e-05,2]
[422836706,1779502233000,-500.0,9.311e-05,2]
[422836707,1779502233000,-240.01793856,9.312e-05,2]
[422836708,1779502233000,-500.0,9.311e-05,2]
[422836709,1779502233000,-260.53387813,9.311e-05,2]
[422836717,1779502238000,-500.0,9.311e-05,2]
[422836725,1779502238000,-500.0,9.311e-05,2]
[422836720,1779502238000,-500.0,9.311e-05,2]
[422836724,1779502238000,-500.0,9.311e-05,2]
[422836719,1779502238000,-500.0,9.311e-05,2]
[422836718,1779502238000,-500.0,9.311e-05,2]
[422836726,1779502238000,-500.0,9.311e-05,2]
[422836727,1779502238000,-500.0,9.311e-05,2]
[422836715,1779502238000,-500.0,9.311e-05,2]
[422836713,1779502238000,-500.0,9.311e-05,2]
[422836714,1779502238000,-500.0,9.311e-05,2]
[422836712,1779502238000,-500.0,9.311e-05,2]
[422836710,1779502238000,154.69,4.683e-05,2]
[422836711,1779502238000,-239.46612187,9.311e-05,2]
[422836716,1779502238000,-500.0,9.311e-05,2]
[422836728,1779502238000,-500.0,9.311e-05,2]
[422836722,1779502238000,-500.0,9.311e-05,2]
[422836723,1779502238000,-500.0,9.311e-05,2]
[422836744,1779502238000,154.69,5.203e-05,2]
[422836743,1779502238000,154.69,4.943e-05,2]
[422836742,1779502238000,-534.124359,9.312e-05,2]
[422836740,1779502238000,-395.24465621,9.312e-05,2]
[422836737,1779502238000,-500.0,9.311e-05,2]
[422836741,1779502238000,-301.87903517,9.312e-05,2]
[422836739,1779502238000,-769323.46668883,9.312e-05,2]
[422836735,1779502238000,-500.0,9.311e-05,2]
[422836738,1779502238000,-500.0,9.311e-05,2]
[422836731,1779502238000,-500.0,9.311e-05,2]
[422836734,1779502238000,-500.0,9.311e-05,2]
[422836721,1779502238000,-500.0,9.311e-05,2]
[422836732,1779502238000,-500.0,9.311e-05,2]
[422836733,1779502238000,-500.0,9.311e-05,2]
[422836730,1779502238000,-500.0,9.311e-05,2]
[422836729,1779502238000,-610.57271187,9.311e-05,2]
[422836736,1779502238000,-500.0,9.311e-05,2]
[422836749,1779502239000,154.69,6.504e-05,2]
[422836748,1779502239000,154.69,6.243e-05,2]
[422836747,1779502239000,154.69,5.983e-05,2]
[422836746,1779502239000,154.69,5.723e-05,2]
[422836745,1779502239000,154.69,5.463e-05,2]
[422836752,1779502240000,154.69,7.284e-05,2]
[422836750,1779502240000,154.69,6.764e-05,2]
[422836756,1779502240000,154.69,7.544e-05,2]
[422836751,1779502240000,154.69,7.024e-05,2]
[422836758,1779502240000,154.69,7.804e-05,2]
[422836760,1779502240000,-931.82698557,9.312e-05,2]
[422836761,1779502240000,-2365.275,9.312e-05,2]
[422836759,1779502240000,-18128.77799076,9.312e-05,2]
[422836757,1779502240000,-23921.5,9.312e-05,2]
[422836805,1779502241000,-200.33039717,0.00010697,2]
[422836795,1779502241000,-2571.66,0.00010529,2]
[422836801,1779502241000,-5178.301188,0.00010696,2]
[422836803,1779502241000,-23558.1571412,0.00010696,2]
[422836800,1779502241000,-46507.1020557,0.00010696,2]
[422836799,1779502241000,-2000.0,0.00010671,2]
[422836796,1779502241000,-208.7374384,0.00010638,2]
[422836798,1779502241000,-164.6,0.00010657,2]
[422836794,1779502241000,-2351.0,0.00010511,2]
[422836793,1779502241000,-587.0,0.00010511,2]
[422836797,1779502241000,-183.14,0.00010654,2]
[422836809,1779502241000,-199.06318844,0.000107,2]
[422836811,1779502241000,-151.0,0.000107,2]
[422836807,1779502241000,-132486.60648121,0.000107,2]
[422836815,1779502241000,-330.0,0.00010712,3]
[422836813,1779502241000,-151.60465062,0.000107,2]
[422836817,1779502241000,-2571.66,0.00010779,2]
[422836821,1779502241000,-1747.45404258,0.000109,2]
[422836819,1779502241000,-1700.0,0.000109,3]
[422836830,1779502241000,-150.0,0.00010959,2]
[422836828,1779502241000,-150.0,0.00010959,2]
[422836825,1779502241000,-1900.0,0.000109,3]
[422836823,1779502241000,-1747.45404254,0.000109,2]
[422836834,1779502241000,-2571.66,0.0001103,2]
[422836790,1779502241000,-2000.0,0.00010498,2]
[422836836,1779502241000,-433.0,0.00011069,2]
[422836792,1779502241000,-170.121,0.000105,2]
[422836773,1779502241000,-1680.0,9.556e-05,2]
[422836787,1779502241000,-4704.88947564,0.00010107,2]
[422836832,1779502241000,-165.31,0.0001099,2]
[422836762,1779502241000,-2511.0,9.312e-05,2]
[422836766,1779502241000,-603605.49594298,9.312e-05,2]
[422836767,1779502241000,-1852.42,9.388e-05,2]
[422836769,1779502241000,-26850.25644092,9.412e-05,2]
[422836764,1779502241000,-1844.22137244,9.312e-05,2]
[422836765,1779502241000,-7375.77315457,9.312e-05,2]
[422836768,1779502241000,-196.68,9.407e-05,2]
[422836763,1779502241000,-1844.09,9.312e-05,2]
[422836770,1779502241000,-250.0,9.556e-05,2]
[422836772,1779502241000,-420.0,9.556e-05,2]
[422836771,1779502241000,-250.0,9.556e-05,2]
[422836783,1779502241000,-213.6456078,0.0001,2]
[422836774,1779502241000,-2000.0,9.604e-05,2]
[422836779,1779502241000,-164.0,9.939e-05,2]
[422836777,1779502241000,-7783.52348462,9.894e-05,2]
[422836775,1779502241000,-196.68,9.668e-05,2]
[422836778,1779502241000,-196.68,9.929e-05,2]
[422836780,1779502241000,-6814.0,9.973e-05,2]
[422836781,1779502241000,-1989681.1019,9.994e-05,2]
[422836786,1779502241000,-255.0,0.00010063,2]
[422836784,1779502241000,-213.6456078,0.0001,2]
[422836785,1779502241000,-2571.66,0.00010027,2]
[422836788,1779502241000,-169.1,0.0001026,2]
[422836789,1779502241000,-2571.66,0.00010278,2]
[422836791,1779502241000,-1847.772,0.000105,2]
[422836776,1779502241000,-1996.2001,9.894e-05,2]
[422836849,1779502241000,-6060.0,0.00011151,2]
[422836782,1779502241000,-2398.86879266,0.0001,2]
[422836856,1779502241000,-3635.0,0.00011151,2]
[422836913,1779502241000,-2000.0,0.00011738,2]
[422836919,1779502241000,-1747.45404254,0.00012043,2]
[422836921,1779502241000,-677.038347,0.00012058,2]
[422836917,1779502241000,-164.98,0.00012032,2]
[422836915,1779502241000,-1533.312151,0.00011865,2]
[422836939,1779502241000,-150.0,0.00012304,2]
[422836923,1779502241000,-217.946291,0.00012058,2]
[422836925,1779502241000,-403.794079,0.00012058,2]
[422836927,1779502241000,-169.073487,0.0001211,2]
[422836930,1779502241000,-308.0,0.000122,2]
[422836932,1779502241000,-315.0,0.000122,2]
[422836933,1779502241000,-367.99,0.00012205,2]
[422836911,1779502241000,-500.0,0.00011644,2]
[422836928,1779502241000,-3761.46059186,0.00012122,2]
[422836934,1779502241000,-155.30247671,0.00012304,2]
[422836936,1779502241000,-150.16733597,0.00012304,2]
[422836935,1779502241000,-150.0,0.00012304,2]
[422836943,1779502241000,-150.0,0.00012304,2]
[422836937,1779502241000,-150.10146032,0.00012304,2]
[422836942,1779502241000,-150.0,0.00012304,2]
[422836940,1779502241000,-150.39949694,0.00012304,2]
[422836938,1779502241000,-151.85491801,0.00012304,2]
[422836944,1779502241000,-202.81057075,0.00012304,2]
[422836945,1779502241000,-150.0,0.00012304,2]
[422836941,1779502241000,-150.0,0.00012304,2]
[422836840,1779502241000,-3761.46059186,0.00011099,2]
[422836931,1779502241000,-1000.0,0.000122,2]
[422836906,1779502241000,-3292.0,0.00011562,2]
[422836929,1779502241000,-736.0,0.00012176,2]
[422836891,1779502241000,-1355.0,0.00011358,2]
[422836842,1779502241000,-3761.46059186,0.00011099,2]
[422836908,1779502241000,-3761.46059186,0.00011567,2]
[422836838,1779502241000,-3761.46059188,0.00011099,2]
[422836844,1779502241000,-1273.963,0.00011151,2]
[422836846,1779502241000,-1224.0,0.00011151,2]
[422836861,1779502241000,-353.22,0.00011281,2]
[422836863,1779502241000,-499.99,0.00011281,2]
[422836859,1779502241000,-188.34,0.00011233,2]
[422836873,1779502241000,-1123.23,0.00011281,2]
[422836875,1779502241000,-9184.56,0.00011281,2]
[422836869,1779502241000,-9999.99,0.00011281,2]
[422836865,1779502241000,-9999.99,0.00011281,2]
[422836867,1779502241000,-150.99,0.00011281,2]
[422836871,1779502241000,-299.99,0.00011281,2]
[422836877,1779502241000,-999.99,0.00011281,2]
[422836902,1779502241000,-200.0,0.00011561,2]
[422836889,1779502241000,-627.02,0.00011358,2]
[422836879,1779502241000,-1747.45404254,0.00011329,2]
[422836893,1779502241000,-3551.603,0.00011358,2]
[422836895,1779502241000,-160.0,0.00011477,2]
[422836904,1779502241000,-823.0,0.00011562,2]
[422836899,1779502241000,-1002.0,0.00011479,5]
[422836901,1779502241000,-1314.85443165,0.000115,2]
[422836897,1779502241000,-215.27762834,0.00011477,2]
[422836881,1779502241000,-204.52,0.00011337,2]
[422836883,1779502241000,-150.0,0.00011358,2]
[422836885,1779502241000,-150.085,0.00011358,2]
[422836887,1779502241000,-150.0,0.00011358,2]
[422836982,1779502242000,-4609.0,0.00012718,2]
[422836980,1779502242000,-150.0,0.00012714,2]
[422836985,1779502242000,-150.0,0.00012751,2]
[422836983,1779502242000,-150.0,0.00012725,2]
[422836984,1779502242000,-150.0,0.00012725,2]
[422836979,1779502242000,-150.0,0.00012698,2]
[422836988,1779502242000,-150.0,0.00012777,2]
[422836987,1779502242000,-150.0,0.0001276,2]
[422836978,1779502242000,-3761.46059186,0.00012678,2]
[422836977,1779502242000,-150.0,0.00012677,2]
[422836981,1779502242000,-1152.0,0.00012718,2]
[422836976,1779502242000,-150.0,0.00012672,2]
[422836989,1779502242000,-183.14,0.00012784,2]
[422837000,1779502242000,-150.0,0.00012909,2]
[422836990,1779502242000,-150.0,0.00012801,2]
[422836991,1779502242000,-150.0,0.00012804,2]
[422836996,1779502242000,-150.0,0.00012856,2]
[422836993,1779502242000,-150.0,0.0001283,2]
[422836995,1779502242000,-150.0,0.00012851,2]
[422836997,1779502242000,-150.0,0.00012874,2]
[422836994,1779502242000,-150.0,0.0001283,2]
[422836998,1779502242000,-1533.31215095,0.00012877,2]
[422836999,1779502242000,-150.0,0.00012883,2]
[422837001,1779502242000,-150.0,0.00012926,2]
[422837002,1779502242000,-150.0,0.00012935,2]
[422836986,1779502242000,-1747.45404254,0.00012757,2]
[422836992,1779502242000,-2000.0,0.00012805,2]
[422836974,1779502242000,-150.0,0.00012646,2]
[422836946,1779502242000,-150.0,0.00012304,2]
[422836970,1779502242000,-150.0,0.00012593,2]
[422837005,1779502242000,-259.81,0.00012985,2]
[422836948,1779502242000,-150.0,0.0001233,2]
[422836958,1779502242000,-150.0,0.00012436,2]
[422836959,1779502242000,-150.0,0.00012441,2]
[422836960,1779502242000,-150.0,0.00012462,2]
[422836951,1779502242000,-150.0,0.00012383,2]
[422836947,1779502242000,-1127.02,0.00012329,2]
[422836955,1779502242000,-150.0,0.00012418,2]
[422836949,1779502242000,-150.0,0.00012357,2]
[422836961,1779502242000,-150.0,0.00012488,2]
[422836950,1779502242000,-1533.31215095,0.00012371,2]
[422836952,1779502242000,-2398.86879265,0.000124,2]
[422836957,1779502242000,-150.0,0.00012428,2]
[422836953,1779502242000,-150.0,0.00012409,2]
[422836954,1779502242000,-150.0,0.00012409,2]
[422836956,1779502242000,-164.0,0.00012423,2]
[422836962,1779502242000,-150.0,0.00012514,2]
[422836966,1779502242000,-150.0,0.00012553,2]
[422836965,1779502242000,-150.0,0.00012541,2]
[422836964,1779502242000,-150.0,0.00012532,2]
[422836967,1779502242000,-165.31,0.0001256,2]
[422836963,1779502242000,-150.0,0.00012514,2]
[422836968,1779502242000,-150.0,0.00012567,2]
[422836969,1779502242000,-150.0,0.00012578,2]
[422836975,1779502242000,-150.0,0.00012646,2]
[422836972,1779502242000,-150.0,0.0001262,2]
[422836971,1779502242000,-204.52,0.00012597,2]
[422836973,1779502242000,-150.0,0.0001262,2]
[422837003,1779502242000,-150.0,0.00012935,2]
[422837011,1779502242000,-150.0,0.0001304,2]
[422837004,1779502242000,-150.0,0.00012961,2]
[422837041,1779502242000,-2315.0,0.000134,2]
[422837039,1779502242000,-150.0,0.00013398,2]
[422837038,1779502242000,-541.0,0.00013393,2]
[422837044,1779502242000,-150.0,0.00013423,2]
[422837043,1779502242000,-150.0,0.00013408,2]
[422837040,1779502242000,-2315.0,0.000134,2]
[422837045,1779502242000,-150.0,0.00013435,2]
[422837046,1779502242000,-150.0,0.00013443,2]
[422837051,1779502242000,-150.0,0.00013487,2]
[422837048,1779502242000,-150.0,0.00013461,2]
[422837049,1779502242000,-426.0,0.00013467,5]
[422837055,1779502242000,-150.0,0.00013547,2]
[422837054,1779502242000,-150.0,0.0001354,2]
[422837053,1779502242000,-150.0,0.00013535,2]
[422837052,1779502242000,-150.0,0.00013513,2]
[422837056,1779502242000,-150.0,0.00013557,2]
[422837050,1779502242000,-1747.45404254,0.00013471,2]
[422837058,1779502242000,-150.0,0.00013566,2]
[422837057,1779502242000,-150.0,0.00013566,2]
[422837063,1779502242000,-151.25107528,0.00013671,2]
[422837064,1779502242000,-150.54625846,0.00013671,2]
[422837060,1779502242000,-150.0,0.00013619,2]
[422837059,1779502242000,-150.0,0.00013592,2]
[422837062,1779502242000,-153.58436249,0.00013671,2]
[422837065,1779502242000,-155.65775915,0.00013671,2]
[422837061,1779502242000,-150.0,0.00013645,2]
[422837010,1779502242000,-150.0,0.0001304,2]
[422837042,1779502242000,-2315.0,0.000134,2]